Cogmind - Beta 13 @@@ ROGUE MODE // 2024.04.21 @ 23:38:40 Player: lucky255 Result: Destroyed by G-47 Trooper with Particle Gun Performance ------------- Evolutions (1) 500 Regions Visited (5) 1000 Robots Destroyed (14) 70 Value Destroyed (392) 392 Prototype IDs (23) 460 Alien Tech Used (0) 0 Bonus (300) 300 TOTAL SCORE: 2722 Bonus ------- Aligned with FarCom 300 Cogmind --------- Core Integrity 0/400 Matter 289/300 Energy 100/100 System Corruption 0% Temperature Cool (9) Movement Core (350) Ox6 Location -8/Mines Parts ------- > --- POWER (1) -------- (None) > --- PROPULSION (4) --- (None) > --- UTILITY (2) ------ Large Storage Unit Visual Processing Unit > --- WEAPON (2) ------- (None) > --- INVENTORY (15) --- Nuclear Core Aluminum Leg Aluminum Leg Aluminum Leg Aluminum Leg Small Storage Unit Medium Storage Unit Huge Storage Unit Sensor Array Improved Light Armor Plating Reactive Plating Heavy Particle Cannon Datajack Peak State ------------ > --- POWER ------------ Nuclear Core > --- PROPULSION ------- Aluminum Leg Aluminum Leg Potential Leg Potential Leg > --- UTILITY ---------- Large Storage Unit Visual Processing Unit > --- WEAPON ----------- Heavy Particle Cannon Heavy Particle Cannon > --- INVENTORY -------- Nuclear Core Aluminum Leg Aluminum Leg Small Storage Unit Medium Storage Unit Huge Storage Unit Sensor Array Improved Light Armor Plating Reactive Plating Improved Light Cannon Datajack [Rating: 35] Favorites ----------- Power Nuclear Core Engine Light Ion Engine Power Core Nuclear Core Propulsion Aluminum Leg Treads Light Treads Leg Aluminum Leg Utility Visual Processing Unit Device Disposable Heat Sink Storage Small Storage Unit Processor Visual Processing Unit Weapon Heavy Particle Cannon Energy Gun Particle Gun Energy Cannon Heavy Particle Cannon Ballistic Gun Assault Rifle Ballistic Cannon Improved Light Cannon Special Melee Weapon Datajack Build | -11 -10 -9 -9 -9 -8 ------- Run | Yrd Mat Mat Min Exi Min Slots Evolved 2 | . . 2 . . . Power . | . . . . . . Propulsion 2 | . . 2 . . . Utility . | . . . . . . Weapon . | . . . . . . Parts Attached 43 | 4 12 15 3 6 3 Power 3 | 1 . 2 . . . Engine 1 | 1 . . . . . Core 2 | . . 2 . . . Reactor . | . . . . . . Propulsion 20 | 2 6 8 2 2 . Treads 4 | . 3 1 . . . Leg 16 | 2 3 7 2 2 . Wheel . | . . . . . . Hover . | . . . . . . Flight . | . . . . . . Utility 7 | 1 2 1 . 3 . Device 2 | . 2 . . . . Storage 4 | 1 . . . 3 . Processor 1 | . . 1 . . . Hackware . | . . . . . . Protection . | . . . . . . Artifact . | . . . . . . Weapon 13 | . 4 4 1 1 3 Energy Gun 3 | . 3 . . . . Energy Cannon 3 | . . 1 . . 2 Ballistic Gun 1 | . 1 . . . . Ballistic Cannon 3 | . . 1 1 . 1 Launcher . | . . . . . . Special Weapon . | . . . . . . Impact Weapon . | . . . . . . Slashing Weapon . | . . . . . . Piercing Weapon . | . . . . . . Special Melee Weapon 3 | . . 2 . 1 . Unidentified Prototypes 1 | . . . . 1 . Parts Lost 10 | . . 1 2 . 7 Power 1 | . . . . . 1 Propulsion 7 | . . 1 2 . 4 Utility . | . . . . . . Weapon 2 | . . . . . 2 Highest Loss Streak 7 | . . 1 2 . 7 To Critical Strikes . | . . . . . . Average Slot Usage (%) 97 | . 96 97 97 100 79 Engine 3 | . 14 2 . . . Core 7 | . . 7 11 11 8 Leg 39 | . 27 41 41 44 33 Device 2 | . 11 . . . . Storage 11 | . 14 11 11 11 11 Processor 8 | . . 10 11 11 11 Energy Gun 5 | . 21 4 . . . Energy Cannon 7 | . . 7 11 11 9 Ballistic Gun 1 | . 6 . . . . Ballistic Cannon 3 | . . 5 11 2 . Special Melee Weapon 5 | . . 4 . 8 5 Naked Turns . | . . . . . . Heaviest Build 97 | 8 15 22 22 97 39 Greatest Support 80 | 20 20 43 43 80 80 Greatest Overweight (x) 6 | . . . 1 2 6 Average Overweight (x) . | . . . . . . Largest Inventory Capacity 25 | 8 8 8 8 25 15 Average Capacity 10 | 6 8 8 8 13 15 Most Carried 13 | 8 8 8 8 11 13 Average Carried 8 | 5 7 7 7 9 11 Final Capacity 15 | 8 8 8 8 15 15 Final Carried 13 | 8 8 8 7 11 13 Class Distribution -------------------- 100% | Mutant Dominant Class ---------------- Mutant | -10/Materials Mutant | -9/Materials Mutant | -9/Mines Mutant | -9/Exiles Mutant | -8/Mines Resources | -11 -10 -9 -9 -9 -8 ----------- Run | Yrd Mat Mat Min Exi Min Matter Collected 671 | 153 60 312 102 . 44 Remotely 33 | . 33 . . . . Salvage Created 410 | . 72 241 50 . 47 Parts 24 | . 6 12 3 . 3 Haulers Intercepted . | . . . . . . Recyclers Shooed . | . . . . . . Parts Field Recycled . | . . . . . . Retrieved Matter . | . . . . . . Parts Self-Destructed . | . . . . . . Prevented . | . . . . . . Kills | -11 -10 -9 -9 -9 -8 ------- Run | Yrd Mat Mat Min Exi Min Combat Hostiles Destroyed 14 | . 4 6 3 . 1 Guns 4 | . 4 . . . . Cannons 10 | . . 6 3 . 1 Classes Destroyed 4 | . 2 2 . . . Swarmer 6 | . 3 . 3 . . Grunt 6 | . 1 4 . . 1 Duelist 1 | . . 1 . . . Sentry 1 | . . 1 . . . Best Kill Streak 3 | . 3 3 3 . 1 Combat Bots Only 3 | . 3 3 3 . 1 Max Kills in Single Turn 1 | . 1 1 1 . 1 Gunslinging . | . . . . . . Exploded . | . . . . . . Melee . | . . . . . . Uniques/NPCs Destroyed . | . . . . . . Combat | -11 -10 -9 -9 -9 -8 -------- Run | Yrd Mat Mat Min Exi Min Hostile Shots Fired 188 | . 21 65 19 . 83 Missed 49 | . 6 23 3 . 17 Damage Taken 2148 | . 148 613 301 . 1086 Core 460 | . 52 55 69 . 284 Absorbed by Shields . | . . . . . . Regen/Repaired (Parts) 140 | . . 140 . . . Core Remaining (%) 89 | 100 79 . . . . Volleys Fired 39 | . 9 14 7 . 9 Largest 2 | . 2 2 2 . 2 Hottest 150 | . 130 114 114 . 150 Shots Fired 75 | . 18 28 14 . 15 Gun 23 | . 18 5 . . . Cannon 52 | . . 23 14 . 15 Launcher . | . . . . . . Special . | . . . . . . Kinetic 30 | . 6 14 7 . 3 Thermal 45 | . 12 14 7 . 12 Explosive . | . . . . . . Electromagnetic . | . . . . . . Robot Hit Streak 8 | . 8 6 3 . 8 Robot Miss Streak 7 | . 5 7 2 . 2 Penetration Max . | . . . . . . Secondary Targets . | . . . . . . Shots Hit Robots 48 | . 11 19 8 . 10 Core Hits 24 | . 5 8 5 . 6 Critical Kills . | . . . . . . Critical Parts Destroyed . | . . . . . . Critical Strikes 2 | . . 2 . . . Blast 2 | . . 2 . . . Melee Attacks 3 | . . 2 . . 1 Impact . | . . . . . . Slashing . | . . . . . . Piercing . | . . . . . . Sneak Attacks 1 | . . . . . 1 Combat Hostiles . | . . . . . . Follow-up Attacks . | . . . . . . Damage Inflicted 962 | . 144 360 254 . 204 Guns 188 | . 144 44 . . . Cannons 768 | . . 316 254 . 198 Explosions . | . . . . . . Melee . | . . . . . . Ramming 6 | . . . . . 6 Kinetic 354 | . 61 166 104 . 23 Thermal 602 | . 83 194 150 . 175 Explosive . | . . . . . . Electromagnetic . | . . . . . . Impact . | . . . . . . Slashing . | . . . . . . Piercing . | . . . . . . Highest Corruption . | . . . . . . Average Corruption . | . . . . . . Corruption Purged . | . . . . . . Corruption Blocked . | . . . . . . Overload Shots . | . . . . . . Overflow Damage 15 | . . . 15 . . Projectiles 15 | . . . 15 . . Explosions . | . . . . . . Melee . | . . . . . . Knockbacks 2 | . . . 1 . 1 Impact . | . . . . . . Kinetic 2 | . . . 1 . 1 Secondary . | . . . . . . Self-Inflicted Damage . | . . . . . . Shots . | . . . . . . Rammed . | . . . . . . Targets Rammed 4 | . . . . . 4 Kicked 4 | . . . . . 4 Crushed . | . . . . . . Highest Temperature 585 | . 138 192 204 . 585 Average Temperature 143 | . 46 63 75 . 355 Received Heat Transfer 720 | . 54 243 . . 423 Effects 15 | . . . . . 15 Shutdowns 2 | . . . . . 2 Energy Bleed 2 | . . . . . 2 Interference 2 | . . . . . 2 Short Circuit 1 | . . . . . 1 Damage (minor) 2 | . . . . . 2 Damage (major) 6 | . . . . . 6 Siege Activations . | . . . . . . Robots Corrupted . | . . . . . . Combat Hostiles . | . . . . . . Parts Fried . | . . . . . . Impact Corruptions . | . . . . . . Robots Melted . | . . . . . . Combat Hostiles . | . . . . . . Parts Melted . | . . . . . . Heat Transferred 1036 | . 222 333 222 . 259 Parts Sabotaged . | . . . . . . Parts Stolen . | . . . . . . Parts Stripped . | . . . . . . Power Chain Reactions . | . . . . . . Alert | -11 -10 -9 -9 -9 -8 ------- Run | Yrd Mat Mat Min Exi Min Peak Influence 257 | . 145 257 121 . 21 Initial 51 | . . 12 51 . . Average 75 | . 68 104 108 . 1 Maximum Alert Level 1 | . . 1 . . . Low Security (%) 96 | 100 100 91 100 . 100 Level 1 3 | . . 8 . . . Level 2 . | . . . . . . Level 3 . | . . . . . . Level 4 . | . . . . . . Level 5 . | . . . . . . High Security . | . . . . . . Max Security . | . . . . . . Squads Dispatched 4 | . 2 2 . . . Investigation 1 | . 1 . . . . Extermination . | . . . . . . Reinforcement 3 | . 1 2 . . . Assault . | . . . . . . Garrison . | . . . . . . Intercept . | . . . . . . Searches Triggered . | . . . . . . Construction Impeded . | . . . . . . Haulers Reinforced . | . . . . . . Active Scanning Responses . | . . . . . . Cargo Convoy Interrupts . | . . . . . . Stealth | -11 -10 -9 -9 -9 -8 --------- Run | Yrd Mat Mat Min Exi Min Distress Signals 1 | . . 1 . . . Communications Jammed . | . . . . . . Distress Signals . | . . . . . . Times Spotted 52 | . 14 25 9 . 4 Peak Tracking Total 17 | . 4 10 17 . 4 Tactical Retreats 1 | . . 1 . . . Traps | -11 -10 -9 -9 -9 -8 ------- Run | Yrd Mat Mat Min Exi Min Traps Triggered 1 | . 1 . . . . Indirectly . | . . . . . . Trap Hack Attempts . | . . . . . . Triggered . | . . . . . . Disarmed . | . . . . . . Reprogrammed . | . . . . . . Reused . | . . . . . . Traps Extracted . | . . . . . . Installed . | . . . . . . Triggered . | . . . . . . Machines | -11 -10 -9 -9 -9 -8 ---------- Run | Yrd Mat Mat Min Exi Min Machines Disabled 1 | . . 1 . . . Max in Single Turn 1 | . . 1 . . . Machines Repaired . | . . . . . . Machines Dismantled . | . . . . . . Machines Sabotaged . | . . . . . . Overloaded Fab Kills . | . . . . . . Hacking | -11 -10 -9 -9 -9 -8 --------- Run | Yrd Mat Mat Min Exi Min Machines Accessed 11 | . 2 4 . 5 . Terminals 4 | . 2 2 . . . Fabricators . | . . . . . . Repair Stations 1 | . . 1 . . . Recycling Units 1 | . . 1 . . . Scanalyzers . | . . . . . . Garrison Access . | . . . . . . Total Hacks 64 | . 4 10 . 50 . Successful 60 | . 1 9 . 50 . Failed 4 | . 3 1 . . . Catastrophic 2 | . 2 . . . . Database Lockouts . | . . . . . . Manual 1 | . . . . 1 . Terminals 6 | . 4 2 . . . Fabricators . | . . . . . . Repair Stations 7 | . . 7 . . . Recycling Units 1 | . . 1 . . . Scanalyzers . | . . . . . . Garrison Access . | . . . . . . Terminal Hacks 53 | . 1 2 . 50 . Record 51 | . 1 1 . 49 . Recall Reinforcements 1 | . . 1 . . . Derelict Proto ID Bank 1 | . . . . 1 . Fabricator Hacks . | . . . . . . Repair Station Hacks 6 | . . 6 . . . Scan Component 3 | . . 3 . . . Repair 3 | . . 3 . . . Recycling Unit Hacks 1 | . . 1 . . . Report Inventory 1 | . . 1 . . . Scanalyzer . | . . . . . . Garrison Access Hacks . | . . . . . . Unauthorized Hacks . | . . . . . . Terminals . | . . . . . . Fabricators . | . . . . . . Repair Stations . | . . . . . . Recycling Units . | . . . . . . Scanalyzers . | . . . . . . Garrison Access . | . . . . . . Data Cores Recovered . | . . . . . . Used . | . . . . . . Hacking Detections 2 | . 1 1 . . . Full Trace Events 1 | . 1 . . . . Feedback Events . | . . . . . . Feedback Blocked . | . . . . . . Robot Schematics Acquired . | . . . . . . Robots Built . | . . . . . . Authchips . | . . . . . . Time . | . . . . . . Total Robot Build Rating . | . . . . . . Part Schematics Acquired . | . . . . . . Parts Built . | . . . . . . Authchips . | . . . . . . Time . | . . . . . . Total Part Build Rating . | . . . . . . Parts Repaired 3 | . . 3 . . . Time 90 | . . 90 . . . Parts Recycled . | . . . . . . Recycled Matter . | . . . . . . Retrieved Matter . | . . . . . . Retrieved Components . | . . . . . . Parts Scanalyzed . | . . . . . . Part Schematics Acquired . | . . . . . . Parts Damaged . | . . . . . . Bothacking | -11 -10 -9 -9 -9 -8 ------------ Run | Yrd Mat Mat Min Exi Min Used RIF Installer . | . . . . . . Robots Hacked 2 | . . 1 . . 1 Non-combat 2 | . . 1 . . 1 Combat . | . . . . . . Robot Hacks Applied 2 | . . 1 . . 1 parse_system 1 | . . 1 . . . no_distress 1 | . . . . . 1 Relay Couplers Released . | . . . . . . Fabnet Peak Effective % . | . . . . . . Robots Rewired . | . . . . . . Allies Hacked . | . . . . . . Hacks Repelled . | . . . . . . Allies | -11 -10 -9 -9 -9 -8 -------- Run | Yrd Mat Mat Min Exi Min Total Allies . | . . . . . . Largest Group . | . . . . . . Highest-Rated Group . | . . . . . . Highest-Rated Ally . | . . . . . . Total Orders . | . . . . . . Ally Attacks . | . . . . . . Total Damage . | . . . . . . Kills . | . . . . . . Allies Corrupted . | . . . . . . Allies Melted . | . . . . . . Intel | -11 -10 -9 -9 -9 -8 ------- Run | Yrd Mat Mat Min Exi Min Robot Analysis Total . | . . . . . . Derelict Logs Recovered 1 | . . . 1 . . Drone Launches . | . . . . . . Drone Recoveries . | . . . . . . Exploration | -11 -10 -9 -9 -9 -8 ------------- Run | Yrd Mat Mat Min Exi Min Turns Passed 2724 | 134 493 711 158 1053 175 Spaces Moved 2021 | 115 334 449 104 896 123 Core 29 | 27 . . . . 2 Treads . | . . . . . . Legs 1992 | 88 334 449 104 896 121 Wheels . | . . . . . . Hover . | . . . . . . Flight . | . . . . . . Fastest Speed 50 | 50 120 120 120 105 90 Average Speed 116 | 103 120 120 124 115 104 Slowest Speed 350 | 120 120 120 190 260 350 Overloaded Moves . | . . . . . . Propulsion Burnouts . | . . . . . . Robots Hopped . | . . . . . . Cave-ins Triggered . | . . . . . . Exploration Rate (%) 35 | 7 38 28 25 95 20 Regions Visited 5 Branch Regions 3 Pre-discovered Areas 1 | . . . . 1 . Known Exits Taken . | . . . . . . Unknown Exits Taken 5 | 1 1 1 1 1 . Scrap Searched 2 | . . . 1 . 1 Spaces Dug . | . . . . . . Terrain Destroyed 9 | . . 1 2 . 6 Melee . | . . . . . . Projectile 9 | . . 1 2 . 6 AOE . | . . . . . . Terrain Rammed . | . . . . . . Walls Destroyed . | . . . . . . Machines Disabled . | . . . . . . Actions | -11 -10 -9 -9 -9 -8 --------- Run | Yrd Mat Mat Min Exi Min Total 2306 | 130 406 593 118 907 152 Wait 140 | . 39 85 4 2 10 Move 2016 | 114 333 448 103 895 123 Hop . | . . . . . . Pick Up 45 | 12 8 18 1 4 2 Fast Attach . | . . . . . . Attach 15 | 4 3 6 2 . . Detach . | . . . . . . Swap 28 | . 9 9 1 6 3 Drop 16 | . 5 11 . . . Fire 39 | . 9 14 7 . 9 Melee 3 | . . 2 . . 1 Ram . | . . . . . . Kick 4 | . . . . . 4 Crush . | . . . . . . Escape Stasis . | . . . . . . Rewire . | . . . . . . Trap . | . . . . . . Miscellaneous . | . . . . . . Route ------- -11/Scrapyard -10/Materials -9/Materials -9/Mines -9/Exiles (discovered 2 exits: [*Min x2]) -8/Mines History --------- Turn | Location | Event 3 | -11/Scrapyard | Discovered new exit (range 15) 135 | -11/Scrapyard | Entered Materials 315 | -10/Materials | Build established: Mutant 516 | -10/Materials | Discovered new exit (range 15) 628 | -10/Materials | Entered another Materials area 628 | -9/Materials | Evolved 2 slots: Propulsion x2 1024 | -9/Materials | Repaired Aluminum Leg 1050 | -9/Materials | Repaired Aluminum Leg 1130 | -9/Materials | Repaired Nuclear Core 1329 | -9/Materials | Discovered new exit (range 9) 1339 | -9/Materials | Entered Mines 1370 | -9/Mines | Assembled infested the area 1381 | -9/Mines | Learned Materials stockpile data 1399 | -9/Mines | Met 8R-AWN 1492 | -9/Mines | Discovered new exit (range 5) 1497 | -9/Mines | Entered Exiles 1526 | -9/Exiles | Welcomed by 8R-AWN 1550 | -9/Exiles | Met EX-HEX 1649 | -9/Exiles | Met EX-DEC 1750 | -9/Exiles | Discovered new exit (range 15) 1845 | -9/Exiles | Learned location of Zion (-7) 1910 | -9/Exiles | Visited The Gauntlet 2095 | -9/Exiles | Met EX-BIN 2154 | -9/Exiles | Aligned with FarCom system 2155 | -9/Exiles | Given EX-Vault access code 2227 | -9/Exiles | Opened EX-Vault 2265 | -9/Exiles | Found Prototype Leg 2267 | -9/Exiles | Found Prototype Leg 2268 | -9/Exiles | Identified Potential Leg (x2) 2332 | -9/Exiles | Warned to stay clear of 0b10 Research branches 2383 | -9/Exiles | Learned about 8R-AWN's background 2404 | -9/Exiles | Discovered new exit (range 17) 2550 | -9/Exiles | Left Exiles lab with Potential Leg 2550 | -9/Exiles | Entered Mines 2687 | -8/Mines | Core integrity fell below 50% 2696 | -8/Mines | Core integrity fell below 20% 2725 | -8/Mines | Destroyed by G-47 Trooper with Particle Gun Last Messages --------------- 02689_ Penetrated by Slug. 02691_ Acquired Aluminum Leg. 02692_ Penetrated by Slug. 02694_ Critical hit (Burn: +37). 02695_ Acquired Aluminum Leg. 02695_ Penetrated by Slug. 02696_ Acquired 1 matter. 02699_ Slug penetrates Wall. 02705_ K-01 Serf collects debris. 02717_ Slug penetrates Wall. 02717_ Potential Leg destroyed. 02719_ K-01 Serf collects debris. 02722_ Searching scrap... 02722_ Found Ion Engine. 02722_ Found Axe. 02722_ Found Lgt. Nuclear Core. 02722_ Found Imp. Light Cannon. 02722_ Found 43 Matter. 02723_ Acquired 43 matter. 02723_ Slug penetrates Wall. Map ----- +----------------------------------------------------+ | | | | | ?????????????????????????????????????? | | ?????????????????????????????????????? | | ?????????????????????????????????????? | | ?????????????????????????????????????? | | ?????????????????????????????????????? | | ?????????????????????????????????????? | | ????????####?????????????????????????? | | ???????## ##????????????????????????? | | ??????## #????????????????????????? | | ??????# ##???????????????????????? | | ??????# "#???????????????????????? | | ??????## ##???????????????????????? | | ???????## "#???????????????????????? | | ???????#"*%###???????????????????????? | | ??????# # # #????????????????????????? | | ??????### ###????????????????????????? | | ????????# #??????????????????????????? | | ????????# #?####???????????#?????????? | | ????????# ### #?????????? #?????????? | | ????????# ## ##????????? ###???????? | | ????????# ## ##???????? ????????? | | ???????## ## ######### #?????????? | | ???????# h g * ]#?????????? | | ???????# g k /@*#?????????? | | ???????# ####### #######?????????? | | ???????# #?????### ##???????????????? | | ???????# #???????####????????????????? | | ???????# #?????????????#####?????????? | | ???????# #?????????##### ##????????? | | ???????# #????????## ##???????? | | ???????# #????????# #???????? | | ???????# #???###### #???????? | | ???????# #??## ## #???????? | | ???????# #?## ### #???????? | | ??????## ### """ ##??# #??????? | | ?????## ## """ #???? #?????? | | ?????# """ #????? #?????? | | ?????# ##????? ##?????? | | ?????# ## ###??????? #??????? | | ?????## #### ##????????? ??????? | | ??????## ##??#####??????????? ?????? | | ???????# #??????????????????? ?????? | | ???????# #???????????????????? ????? | | ???##### #???????????????????? ???? | | ???# #????????????????????? #???? | | ### ??????????????##???? | | ###????# """????????????????? | | ???????########## ???????????????? | +----------------------------------------------------+ Best States ------------- Heat Dissipation 28 Coolant Potential 50 Energy Generation 14 Energy Capacity 240 Matter Stores 300 Matter Capacity 300 Sight Range 18 Terrain Scan Density 10 Evasion (%) 56 Recoil Reduction 2 Item Schematics ----------------- None Robot Schematics ------------------ None Fabricated ------------ Nothing Alien Tech Used ----------------- None Achievements -------------- I Survived The Infestation Librarian Part-time Mechanic Risk Taker Slippery One Storm Trooper Tourist Challenges ------------ None Game ------ Seed ImpulseRecyclingMantle Manual? 0 Play Time 01:01:35 Cumulative 3.1 hours Start 2024.04.21 @ 22:28:11 End 2024.04.21 @ 23:38:40 Sessions 1 Manual Loads 0 Difficulty Rogue Special Mode None Game No. 4 Rogue 4 Adventurer 0 Explorer 0 Win Type - Total 0 Types 0/0/0/0/0/0/0/0/0 Lore% 11 Gallery% 6 Achievement% 6 Wizard Run 0 Options --------- Layout 1 ASCII 0 Keyboard 1 Movement Numpad Keybinds 0 Fullscreen 1 Font 24/Cog Map View 50x35 Zoom Use 0% Tactical HUD 1 Map Filters NONE Filters NONE Steam 1 RUN: 464de1c9-4f7e-45a7-8fe4-d92c0d84dacb